lending/lending_fUSD_20250429
["ID","MTS","AMOUNT","RATE_DAILY","PERIOD"]
[359350034,1745949038278,-197.26888203,0.00027386,2]
[359350035,1745949038287,-161982.180195,0.00027387,2]
[359350036,1745949038297,-18346.6559756,0.00027387,2]
[359350037,1745949038306,-470.0,0.00027397,2]
[359350038,1745949038315,-550.0,0.00027397,2]
[359350039,1745949038325,-470.0,0.00027397,2]
[359350040,1745949038335,-470.0,0.00027397,2]
[359350041,1745949038344,-530.0,0.00027397,2]
[359350042,1745949038354,-519.67,0.00027397,2]
[359350043,1745949038363,-498.52,0.00027397,2]
[359350044,1745949038372,-1000.0,0.00027397,2]
[359350045,1745949038381,-530.0,0.00027397,2]
[359350046,1745949038391,-286.49117003,0.00027397,2]
[359350047,1745949038400,-470.0,0.00027397,2]
[359350048,1745949038410,-520.78,0.00027397,2]
[359350049,1745949038419,-470.0,0.00027397,2]
[359350050,1745949038429,-470.0,0.00027397,2]
[359350051,1745949038440,-470.0,0.00027397,2]
[359350052,1745949038450,-470.0,0.00027397,2]
[359350053,1745949038460,-470.0,0.00027397,2]
[359350054,1745949038470,-470.0,0.00027397,2]
[359350055,1745949038479,-470.0,0.00027397,2]
[359350056,1745949038488,-470.0,0.00027397,2]
[359350057,1745949038498,-470.0,0.00027397,2]
[359350058,1745949038507,-488.73239374,0.00027397,2]
[359350059,1745949038516,-470.0,0.00027397,2]
[359350060,1745949038526,-500.0,0.00027397,2]
[359350061,1745949038535,-564.15497355,0.00027397,2]
[359350062,1745949038544,-500.0,0.00027397,2]
[359350063,1745949038553,-470.0,0.00027397,2]
[359350064,1745949038563,-537.97,0.00027397,2]
[359350065,1745949038572,-500.0,0.00027397,2]
[359350066,1745949038583,-500.0,0.00027397,2]
[359350067,1745949038592,-470.0,0.00027397,2]
[359350068,1745949038601,-470.0,0.00027397,2]
[359350069,1745949038611,-470.0,0.00027397,2]
[359350070,1745949038621,-306.59375341,0.00027397,2]
[359350071,1745949038631,-470.0,0.00027397,2]
[359350072,1745949038641,-425.91818127,0.00027397,2]
[359350073,1745949038650,-500.0,0.00027397,2]
[359350074,1745949038660,-470.0,0.00027397,2]
[359350075,1745949038669,-500.0,0.00027397,2]
[359350076,1745949038679,-470.0,0.00027397,2]
[359350077,1745949038688,-470.0,0.00027397,2]
[359350078,1745949038698,-470.0,0.00027397,2]
[359350079,1745949038707,-470.0,0.00027397,2]
[359350080,1745949038716,-500.0,0.00027397,2]
[359350081,1745949038726,-470.0,0.00027397,2]
[359350082,1745949038735,-1113.6,0.00027397,2]
[359350083,1745949038745,-470.0,0.00027397,2]
[359350084,1745949038754,-470.0,0.00027397,2]
[359350085,1745949038764,-611.04,0.00027397,2]
[359350086,1745949038773,-470.0,0.00027397,2]
[359350087,1745949038782,-470.0,0.00027397,2]
[359350088,1745949038791,-470.0,0.00027397,2]
[359350089,1745949038801,-470.0,0.00027397,2]
[359350090,1745949038810,-470.0,0.00027397,2]
[359350091,1745949038820,-500.0,0.00027397,2]
[359350092,1745949038830,-470.0,0.00027397,2]
[359350093,1745949038839,-631.2,0.00027397,2]
[359350094,1745949038848,-500.0,0.00027397,2]
[359350095,1745949038857,-470.0,0.00027397,2]
[359350096,1745949038866,-564.79,0.00027397,2]
[359350097,1745949038876,-470.0,0.00027397,2]
[359350098,1745949038885,-500.0,0.00027397,2]
[359350099,1745949038894,-470.0,0.00027397,2]
[359350100,1745949038903,-668.5,0.00027397,2]
[359350101,1745949038913,-470.0,0.00027397,2]
[359350102,1745949038923,-500.0,0.00027397,2]
[359350103,1745949038932,-826.62,0.00027397,2]
[359350104,1745949038941,-470.0,0.00027397,2]
[359350105,1745949038951,-470.0,0.00027397,2]
[359350106,1745949038960,-470.0,0.00027397,2]
[359350107,1745949038969,-470.0,0.00027397,2]
[359350108,1745949038978,-361.69460847,0.00027397,2]
[359350109,1745949038988,-800.64,0.00027397,2]
[359350110,1745949038997,-470.0,0.00027397,2]
[359350111,1745949039006,-470.0,0.00027397,2]
[359350112,1745949039015,-470.0,0.00027397,2]
[359350113,1745949039024,-502.1,0.00027397,2]
[359350114,1745949039036,-505.47001705,0.00027397,2]
[359350115,1745949039046,-470.0,0.00027397,2]
[359350116,1745949039055,-470.0,0.00027397,2]
[359350117,1745949039064,-470.0,0.00027397,2]
[359350118,1745949039073,-2160.32,0.00027397,2]
[359350119,1745949039084,-470.0,0.00027397,2]
[359350120,1745949039094,-470.0,0.00027397,2]
[359350121,1745949039103,-470.0,0.00027397,2]
[359350122,1745949039112,-470.0,0.00027397,2]
[359350123,1745949039122,-1312.33,0.00027397,2]
[359350124,1745949039132,-548.44,0.00027397,2]
[359350125,1745949039142,-470.0,0.00027397,2]
[359350126,1745949039152,-470.0,0.00027397,2]
[359350127,1745949039162,-470.0,0.00027397,2]
[359350128,1745949039172,-470.0,0.00027397,2]
[359350129,1745949039181,-2312.86,0.00027397,2]
[359350130,1745949039191,-470.0,0.00027397,2]
[359350131,1745949039200,-470.0,0.00027397,2]
[359350132,1745949039209,-470.0,0.00027397,2]
[359350133,1745949039219,-470.0,0.00027397,2]
[359350134,1745949039228,-470.0,0.00027397,2]
[359350135,1745949039238,-395.74814103,0.00027397,2]
[359350136,1745949039247,-470.0,0.00027397,2]
[359350137,1745949039257,-470.0,0.00027397,2]
[359350138,1745949039267,-470.0,0.00027397,2]
[359350139,1745949039276,-470.0,0.00027397,2]
[359350140,1745949039286,-484.25,0.00027397,2]
[359350141,1745949039295,-470.0,0.00027397,2]
[359350142,1745949039305,-470.0,0.00027397,2]
[359350143,1745949039315,-470.0,0.00027397,2]
[359350144,1745949039324,-470.0,0.00027397,2]
[359350145,1745949039337,-470.0,0.00027397,2]
[359350146,1745949039347,-470.0,0.00027397,2]
[359350147,1745949039359,-470.0,0.00027397,2]
[359350148,1745949039370,-569.85819969,0.00027397,2]
[359350149,1745949039380,-470.0,0.00027397,2]
[359350150,1745949039391,-470.0,0.00027397,2]
[359350151,1745949039407,-470.0,0.00027397,2]
[359350152,1745949039423,-470.0,0.00027397,2]
[359350153,1745949039434,-470.0,0.00027397,2]
[359350154,1745949039444,-500.0,0.00027397,2]
[359350155,1745949039453,-500.0,0.00027397,2]
[359350156,1745949039463,-5959.741954,0.00027397,2]
[359350157,1745949039472,-470.0,0.00027397,2]
[359350158,1745949039481,-470.0,0.00027397,2]
[359350159,1745949039491,-500.0,0.00027397,2]
[359350160,1745949039500,-470.0,0.00027397,2]
[359350161,1745949039510,-470.0,0.00027397,2]
[359350162,1745949039519,-470.0,0.00027397,2]
[359350163,1745949039528,-470.0,0.00027397,2]
[359350164,1745949039537,-470.0,0.00027397,2]
[359350165,1745949039547,-470.0,0.00027397,2]
[359350166,1745949039556,-470.0,0.00027397,2]
[359350167,1745949039565,-500.0,0.00027397,2]
[359350168,1745949039575,-500.0,0.00027397,2]
[359350169,1745949039584,-500.0,0.00027397,2]
[359350170,1745949039594,-659.334822,0.00027397,2]
[359350171,1745949039604,-470.0,0.00027397,2]
[359350172,1745949039614,-470.0,0.00027397,2]
[359350173,1745949039625,-470.0,0.00027397,2]
[359350174,1745949039635,-500.0,0.00027397,2]
[359350175,1745949039644,-486.33,0.00027397,2]
[359350176,1745949039654,-657.74,0.00027397,2]
[359350177,1745949039663,-470.0,0.00027397,2]
[359350178,1745949039672,-470.0,0.00027397,2]
[359350179,1745949039682,-488.21,0.00027397,2]
[359350180,1745949039692,-470.0,0.00027397,2]
[359350181,1745949039702,-437.515976,0.00027397,2]
[359350182,1745949039711,-470.0,0.00027397,2]
[359350183,1745949039720,-500.0,0.00027397,2]
[359350184,1745949039730,-470.0,0.00027397,2]
[359350185,1745949039739,-470.0,0.00027397,2]
[359350186,1745949039749,-470.0,0.00027397,2]
[359350187,1745949039759,-470.0,0.00027397,2]
[359350188,1745949039768,-470.0,0.00027397,2]
[359350189,1745949039781,-542.45,0.00027397,2]
[359350190,1745949039791,-500.0,0.00027397,2]
[359350191,1745949039801,-470.0,0.00027397,2]
[359350193,1745949039814,-656.69,0.00027397,2]
[359350195,1745949039830,-552.91,0.00027397,2]
[359350196,1745949039840,-470.0,0.00027397,2]
[359350198,1745949039849,-500.0,0.00027397,2]
[359350199,1745949039859,-470.0,0.00027397,2]
[359350201,1745949039869,-470.0,0.00027397,2]
[359350203,1745949039879,-470.0,0.00027397,2]
[359350205,1745949039889,-500.0,0.00027397,2]
[359350207,1745949039899,-470.0,0.00027397,2]
[359350208,1745949039908,-610.66,0.00027397,2]
[359350210,1745949039919,-470.0,0.00027397,2]
[359350212,1745949039928,-470.0,0.00027397,2]
[359350213,1745949039937,-470.0,0.00027397,2]
[359350215,1745949039948,-470.0,0.00027397,2]
[359350217,1745949039957,-470.0,0.00027397,2]
[359350218,1745949039966,-185.437921,0.00027397,2]
[359350220,1745949039975,-500.0,0.00027397,2]
[359350222,1745949039984,-564.02068591,0.00027397,2]
[359350224,1745949039993,-500.0,0.00027397,2]
[359350225,1745949040002,-470.0,0.00027397,2]
[359350227,1745949040012,-470.0,0.00027397,2]
[359350229,1745949040022,-558.47,0.00027397,2]
[359350230,1745949040032,-471.31,0.00027397,2]
[359350232,1745949040043,-500.0,0.00027397,2]
[359350233,1745949040053,-500.0,0.00027397,2]
[359350234,1745949040062,-470.0,0.00027397,2]
[359350235,1745949040072,-1049.74,0.00027397,2]
[359350236,1745949040083,-470.0,0.00027397,2]
[359350237,1745949040092,-500.0,0.00027397,2]
[359350238,1745949040103,-164.068496,0.00027397,2]
[359350239,1745949040115,-470.0,0.00027397,2]
[359350240,1745949040126,-470.0,0.00027397,2]
[359350241,1745949040136,-470.0,0.00027397,2]
[359350242,1745949040147,-566.36,0.00027397,2]
[359350243,1745949040157,-470.0,0.00027397,2]
[359350244,1745949040166,-470.0,0.00027397,2]
[359350245,1745949040176,-534.78,0.00027397,2]
[359350246,1745949040185,-470.0,0.00027397,2]
[359350247,1745949040194,-563.33,0.00027397,2]
[359350248,1745949040204,-372.483872,0.00027397,2]
[359350249,1745949040213,-189.8119636,0.00027397,2]
[359350250,1745949040222,-500.0,0.00027397,2]
[359350251,1745949040232,-470.0,0.00027397,2]
[359350252,1745949040241,-470.0,0.00027397,2]
[359350253,1745949040251,-470.0,0.00027397,2]
[359350254,1745949040260,-470.0,0.00027397,2]
[359350255,1745949040269,-470.0,0.00027397,2]
[359350256,1745949040279,-470.0,0.00027397,2]
[359350257,1745949040289,-470.0,0.00027397,2]
[359350258,1745949040298,-470.0,0.00027397,2]
[359350259,1745949040308,-471.37444039,0.00027397,2]
[359350260,1745949040317,-470.0,0.00027397,2]
[359350261,1745949040327,-470.0,0.00027397,2]
[359350262,1745949040337,-500.0,0.00027397,2]
[359350263,1745949040347,-557.82,0.00027397,2]
[359350264,1745949040356,-500.0,0.00027397,2]
[359350265,1745949040366,-470.0,0.00027397,2]
[359350266,1745949040376,-1537.22,0.00027397,2]
[359350267,1745949040386,-470.0,0.00027397,2]
[359350268,1745949040395,-496.59,0.00027397,2]
[359350269,1745949040406,-500.0,0.00027397,2]
[359350270,1745949040415,-470.0,0.00027397,2]
[359350271,1745949040426,-470.0,0.00027397,2]
[359350272,1745949040437,-470.0,0.00027397,2]
[359350273,1745949040447,-500.86,0.00027397,2]
[359350274,1745949040457,-652.05,0.00027397,2]
[359350275,1745949040469,-470.0,0.00027397,2]
[359350276,1745949040480,-500.0,0.00027397,2]
[359350277,1745949040490,-1146.41,0.00027397,2]
[359350279,1745949040501,-500.0,0.00027397,2]
[359350281,1745949040513,-500.0,0.00027397,2]
[359350282,1745949040524,-470.0,0.00027397,2]
[359350284,1745949040539,-470.0,0.00027397,2]
[359350286,1745949040552,-470.0,0.00027397,2]
[359350288,1745949040563,-579.71,0.00027397,2]
[359350290,1745949040575,-470.0,0.00027397,2]
[359350292,1745949040592,-470.0,0.00027397,2]
[359350294,1745949040603,-470.0,0.00027397,2]
[359350296,1745949040615,-510.89806514,0.00027397,2]
[359350298,1745949040625,-470.0,0.00027397,2]
[359350300,1745949040635,-470.0,0.00027397,2]
[359350302,1745949040644,-470.0,0.00027397,2]
[359350304,1745949040655,-470.0,0.00027397,2]
[359350306,1745949040664,-470.0,0.00027397,2]
[359350308,1745949040674,-470.0,0.00027397,2]
[359350310,1745949040683,-704.42,0.00027397,2]
[359350312,1745949040693,-470.0,0.00027397,2]
[359350314,1745949040702,-470.0,0.00027397,2]
[359350316,1745949040713,-470.0,0.00027397,2]
[359350318,1745949040722,-470.0,0.00027397,2]
[359350321,1745949040732,-520.13321977,0.00027397,2]
[359350324,1745949040743,-551.91960751,0.00027397,2]
[359350326,1745949040753,-470.0,0.00027397,2]
[359350328,1745949040764,-470.0,0.00027397,2]
[359350330,1745949040774,-520.33533874,0.00027397,2]
[359350332,1745949040784,-470.0,0.00027397,2]
[359350334,1745949040794,-500.0,0.00027397,2]
[359350336,1745949040804,-500.0,0.00027397,2]
[359350338,1745949040814,-500.0,0.00027397,2]
[359350340,1745949040824,-470.0,0.00027397,2]
[359350342,1745949040835,-500.0,0.00027397,2]
[359350344,1745949040846,-604.06199456,0.00027397,2]
[359350346,1745949040856,-470.0,0.00027397,2]
[359350348,1745949040866,-470.0,0.00027397,2]
[359350350,1745949040876,-530.0,0.00027397,2]
[359350352,1745949040886,-500.0,0.00027397,2]
[359350354,1745949040895,-470.0,0.00027397,2]
[359350356,1745949040905,-470.0,0.00027397,2]
[359350359,1745949040915,-470.0,0.00027397,2]
[359350361,1745949040924,-625.71,0.00027397,2]
[359350362,1745949040934,-500.0,0.00027397,2]
[359350364,1745949040944,-500.0,0.00027397,2]
[359350366,1745949040954,-470.0,0.00027397,2]
[359350368,1745949040964,-569.90454869,0.00027397,2]
[359350370,1745949040973,-470.0,0.00027397,2]
[359350372,1745949040983,-158.45905815,0.00027397,2]
[359350374,1745949040993,-2279.31,0.00027397,2]
[359350376,1745949041002,-470.0,0.00027397,2]
[359350378,1745949041012,-470.0,0.00027397,2]
[359350380,1745949041022,-470.0,0.00027397,2]
[359350383,1745949041034,-470.0,0.00027397,2]
[359350385,1745949041045,-544.48,0.00027397,2]
[359350387,1745949041055,-500.0,0.00027397,2]
[359350389,1745949041064,-470.0,0.00027397,2]
[359350391,1745949041075,-500.0,0.00027397,2]
[359350393,1745949041086,-500.0,0.00027397,2]
[359350395,1745949041096,-470.0,0.00027397,2]
[359350397,1745949041106,-470.0,0.00027397,2]
[359350399,1745949041116,-569.56964188,0.00027397,2]
[359350401,1745949041125,-904.77,0.00027397,2]
[359350403,1745949041135,-523.42734274,0.00027397,2]
[359350405,1745949041146,-500.0,0.00027397,2]
[359350407,1745949041156,-470.0,0.00027397,2]
[359350409,1745949041165,-470.0,0.00027397,2]
[359350411,1745949041174,-1788.53,0.00027397,2]
[359350413,1745949041184,-510.11,0.00027397,2]
[359350415,1745949041194,-500.0,0.00027397,2]
[359350417,1745949041204,-250.0,0.00027397,2]
[359350419,1745949041214,-583.71869875,0.00027397,2]
[359350421,1745949041224,-470.0,0.00027397,2]
[359350423,1745949041234,-470.0,0.00027397,2]
[359350425,1745949041243,-470.0,0.00027397,2]
[359350427,1745949041253,-500.0,0.00027397,2]
[359350429,1745949041263,-470.0,0.00027397,2]
[359350431,1745949041272,-470.0,0.00027397,2]
[359350433,1745949041282,-470.0,0.00027397,2]
[359350435,1745949041291,-685.59,0.00027397,2]
[359350437,1745949041301,-470.0,0.00027397,2]
[359350439,1745949041310,-470.0,0.00027397,2]
[359350441,1745949041320,-570.16558119,0.00027397,2]
[359350443,1745949041331,-470.0,0.00027397,2]
[359350445,1745949041340,-500.0,0.00027397,2]
[359350447,1745949041350,-549.62840083,0.00027397,2]
[359350449,1745949041359,-539.63,0.00027397,2]
[359350451,1745949041369,-470.0,0.00027397,2]
[359350453,1745949041378,-500.0,0.00027397,2]
[359350455,1745949041387,-500.0,0.00027397,2]
[359350457,1745949041397,-529.86279046,0.00027397,2]
[359350459,1745949041406,-470.0,0.00027397,2]
[359350461,1745949041415,-500.0,0.00027397,2]
[359350463,1745949041425,-470.0,0.00027397,2]
[359350465,1745949041434,-1581.86,0.00027397,2]
[359350467,1745949041444,-517.94822005,0.00027397,2]
[359350469,1745949041454,-433.97954774,0.00027397,2]
[359350471,1745949041464,-703.7,0.00027397,2]
[359350473,1745949041473,-470.0,0.00027397,2]
[359350475,1745949041482,-470.0,0.00027397,2]
[359350477,1745949041493,-515.86,0.00027397,2]
[359350479,1745949041502,-2163.53,0.00027397,2]
[359350480,1745949041512,-470.0,0.00027397,2]
[359350482,1745949041521,-500.0,0.00027397,2]
[359350484,1745949041531,-500.0,0.00027397,2]
[359350486,1745949041541,-470.0,0.00027397,2]
[359350488,1745949041550,-541.35527346,0.00027397,2]
[359350490,1745949041559,-507.51505974,0.00027397,2]
[359350492,1745949041569,-470.0,0.00027397,2]
[359350494,1745949041578,-470.0,0.00027397,2]
[359350496,1745949041589,-470.0,0.00027397,2]
[359350498,1745949041598,-508.88046641,0.00027397,2]
[359350500,1745949041608,-470.0,0.00027397,2]
[359350502,1745949041618,-1020.49,0.00027397,2]
[359350504,1745949041627,-500.0,0.00027397,2]
[359350506,1745949041637,-470.0,0.00027397,2]
[359350508,1745949041647,-470.0,0.00027397,2]
[359350510,1745949041659,-716.59,0.00027397,2]
[359350512,1745949041669,-470.0,0.00027397,2]
[359350514,1745949041678,-470.0,0.00027397,2]
[359350516,1745949041688,-470.0,0.00027397,2]
[359350518,1745949041698,-500.0,0.00027397,2]
[359350521,1745949041708,-470.0,0.00027397,2]
[359350523,1745949041717,-490.92,0.00027397,2]
[359350525,1745949041727,-470.0,0.00027397,2]
[359350527,1745949041737,-2329.69,0.00027397,2]
[359350529,1745949041746,-470.0,0.00027397,2]
[359350531,1745949041756,-508.53070407,0.00027397,2]
[359350533,1745949041766,-470.0,0.00027397,2]
[359350535,1745949041775,-470.0,0.00027397,2]
[359350537,1745949041785,-470.0,0.00027397,2]
[359350539,1745949041796,-470.0,0.00027397,2]
[359350541,1745949041806,-507.37459251,0.00027397,2]
[359350543,1745949041816,-470.0,0.00027397,2]
[359350545,1745949041826,-500.0,0.00027397,2]
[359350547,1745949041838,-765.88,0.00027397,2]
[359350549,1745949041848,-470.0,0.00027397,2]
[359350551,1745949041858,-470.0,0.00027397,2]
[359350553,1745949041868,-500.0,0.00027397,2]
[359350555,1745949041878,-470.0,0.00027397,2]
[359350557,1745949041888,-1000.0,0.00027397,2]
[359350559,1745949041898,-563.68849884,0.00027397,2]
[359350561,1745949041908,-470.0,0.00027397,2]
[359350563,1745949041918,-568.19,0.00027397,2]
[359350565,1745949041928,-1203.42,0.00027397,2]
[359350567,1745949041938,-645.19,0.00027397,2]
[359350569,1745949041948,-500.0,0.00027397,2]
[359350571,1745949041960,-970.99,0.00027397,2]
[359350574,1745949041970,-901.28,0.00027397,2]
[359350575,1745949041979,-500.0,0.00027397,2]
[359350578,1745949041989,-470.0,0.00027397,2]
[359350580,1745949041999,-500.0,0.00027397,2]
[359350582,1745949042009,-701.64,0.00027397,2]
[359350584,1745949042018,-470.0,0.00027397,2]
[359350586,1745949042029,-470.0,0.00027397,2]
[359350588,1745949042041,-470.0,0.00027397,2]
[359350590,1745949042051,-500.0,0.00027397,2]
[359350592,1745949042061,-470.0,0.00027397,2]
[359350594,1745949042071,-500.0,0.00027397,2]
[359350596,1745949042081,-470.0,0.00027397,2]
[359350598,1745949042091,-500.0,0.00027397,2]
[359350600,1745949042101,-470.0,0.00027397,2]
[359350602,1745949042110,-500.0,0.00027397,2]
[359350604,1745949042120,-470.0,0.00027397,2]
[359350606,1745949042130,-1092.53,0.00027397,2]
[359350608,1745949042140,-500.0,0.00027397,2]
[359350610,1745949042149,-470.0,0.00027397,2]
[359350612,1745949042159,-470.0,0.00027397,2]
[359350614,1745949042168,-470.0,0.00027397,2]
[359350616,1745949042178,-470.0,0.00027397,2]
[359350618,1745949042187,-470.0,0.00027397,2]
[359350620,1745949042197,-903.38,0.00027397,2]
[359350622,1745949042207,-470.0,0.00027397,2]
[359350624,1745949042217,-1736.45,0.00027397,2]
[359350626,1745949042226,-500.0,0.00027397,2]
[359350628,1745949042236,-470.0,0.00027397,2]
[359350630,1745949042246,-1436.64,0.00027397,2]
[359350632,1745949042256,-470.0,0.00027397,2]
[359350634,1745949042266,-500.0,0.00027397,2]
[359350636,1745949042275,-559.81,0.00027397,2]
[359350637,1745949042285,-2108.64,0.00027397,2]
[359350639,1745949042294,-960.7,0.00027397,2]
[359350641,1745949042304,-500.0,0.00027397,2]
[359350643,1745949042314,-530.0,0.00027397,2]
[359350645,1745949042324,-2353.36,0.00027397,2]
[359350647,1745949042335,-470.0,0.00027397,2]
[359350649,1745949042345,-470.0,0.00027397,2]
[359350652,1745949042355,-470.0,0.00027397,2]
[359350654,1745949042365,-505.0610593,0.00027397,2]
[359350656,1745949042375,-470.0,0.00027397,2]
[359350658,1745949042384,-470.0,0.00027397,2]
[359350660,1745949042395,-500.0,0.00027397,2]
[359350662,1745949042405,-470.0,0.00027397,2]
[359350664,1745949042415,-745.59,0.00027397,2]
[359350666,1745949042425,-394.74784,0.00027397,2]
[359350668,1745949042435,-500.0,0.00027397,2]
[359350670,1745949042448,-545.5,0.00027397,2]
[359350672,1745949042458,-549.47,0.00027397,2]
[359350674,1745949042468,-470.0,0.00027397,2]
[359350676,1745949042478,-586.45,0.00027397,2]
[359350678,1745949042487,-500.0,0.00027397,2]
[359350680,1745949042497,-470.0,0.00027397,2]
[359350682,1745949042507,-500.0,0.00027397,2]
[359350684,1745949042517,-470.0,0.00027397,2]
[359350686,1745949042528,-770.83,0.00027397,2]
[359350688,1745949042537,-470.0,0.00027397,2]
[359350690,1745949042547,-470.0,0.00027397,2]
[359350692,1745949042558,-500.0,0.00027397,2]
[359350694,1745949042568,-470.0,0.00027397,2]
[359350696,1745949042578,-500.0,0.00027397,2]
[359350698,1745949042588,-325.47422841,0.00027397,2]
[359350700,1745949042599,-797.04,0.00027397,2]
[359350702,1745949042609,-470.0,0.00027397,2]
[359350704,1745949042619,-470.0,0.00027397,2]
[359350706,1745949042629,-500.0,0.00027397,2]
[359350708,1745949042638,-543.81,0.00027397,2]
[359350710,1745949042647,-500.0,0.00027397,2]
[359350712,1745949042658,-326.87636313,0.00027397,2]
[359350715,1745949042668,-885.12,0.00027397,2]
[359350717,1745949042677,-470.0,0.00027397,2]
[359350719,1745949042687,-500.0,0.00027397,2]
[359350721,1745949042697,-562.35,0.00027397,2]
[359350724,1745949042708,-500.0,0.00027397,2]
[359350726,1745949042718,-572.07,0.00027397,2]
[359350729,1745949042728,-476.24,0.00027397,2]
[359350731,1745949042738,-257.72024522,0.00027397,2]
[359350733,1745949042747,-880.52,0.00027397,2]
[359350735,1745949042757,-915.71,0.00027397,2]
[359350737,1745949042766,-500.0,0.00027397,2]
[359350739,1745949042775,-470.0,0.00027397,2]
[359350741,1745949042785,-470.0,0.00027397,2]
[359350743,1745949042795,-500.0,0.00027397,2]
[359350745,1745949042805,-470.0,0.00027397,2]
[359350747,1745949042814,-470.0,0.00027397,2]
[359350749,1745949042824,-202.23648594,0.00027397,2]
[359350751,1745949042834,-470.0,0.00027397,2]
[359350753,1745949042843,-820.44,0.00027397,2]
[359350755,1745949042853,-470.0,0.00027397,2]
[359350757,1745949042863,-470.0,0.00027397,2]
[359350759,1745949042872,-496.8700802,0.00027397,2]
[359350761,1745949042882,-625.99,0.00027397,2]
[359350762,1745949042891,-500.0,0.00027397,2]
[359350765,1745949042902,-500.0,0.00027397,2]
[359350766,1745949042911,-500.0,0.00027397,2]
[359350768,1745949042921,-847.38,0.00027397,2]
[359350770,1745949042930,-500.0,0.00027397,2]
[359350772,1745949042940,-500.0,0.00027397,2]
[359350774,1745949042950,-470.0,0.00027397,2]
[359350776,1745949042959,-500.0,0.00027397,2]
[359350778,1745949042969,-568.66,0.00027397,2]
[359350780,1745949042979,-902.33,0.00027397,2]
[359350782,1745949042988,-486.67,0.00027397,2]
[359350784,1745949042997,-500.0,0.00027397,2]
[359350786,1745949043007,-470.0,0.00027397,2]
[359350788,1745949043017,-682.29,0.00027397,2]
[359350790,1745949043027,-3039.36,0.00027397,2]
[359350792,1745949043040,-528.39588478,0.00027397,2]
[359350794,1745949043049,-582.193544,0.00027397,2]
[359350796,1745949043059,-474.23,0.00027397,2]
[359350798,1745949043068,-470.0,0.00027397,2]
[359350800,1745949043079,-500.0,0.00027397,2]
[359350802,1745949043088,-470.0,0.00027397,2]
[359350804,1745949043098,-500.0,0.00027397,2]
[359350806,1745949043109,-470.0,0.00027397,2]
[359350808,1745949043119,-500.0,0.00027397,2]
[359350810,1745949043129,-613.1,0.00027397,2]
[359350812,1745949043139,-470.0,0.00027397,2]
[359350814,1745949043148,-470.0,0.00027397,2]
[359350816,1745949043158,-683.49,0.00027397,2]
[359350818,1745949043168,-470.0,0.00027397,2]
[359350820,1745949043178,-529.27695895,0.00027397,2]
[359350822,1745949043188,-500.0,0.00027397,2]
[359350824,1745949043199,-500.0,0.00027397,2]
[359350826,1745949043210,-539.83,0.00027397,2]
[359350828,1745949043220,-537.75,0.00027397,2]